Cogmind - Beta 17 @@@ ROGUE MODE // 2026.08.21 @ 21:52:40 Player: KURIIRI Result: Self-destructed Performance ------------- Evolutions (0) 0 Regions Visited (4) 800 Robots Destroyed (31) 155 Value Destroyed (849) 849 Prototype IDs (14) 280 Alien Tech Used (0) 0 Bonus (-103) -103 TOTAL SCORE: 1981 Bonus ------- Friendly Fire -103 Cogmind --------- Core Integrity 118/250 Matter 300/300 Energy 200/200 System Corruption 0% Temperature Cool (0) Movement Rolling (125) Ox3 Location -9/Scraptown Parts ------- > --- POWER (1) -------- Subdweller Power Source > --- PROPULSION (2) --- Spiked Treads Wheel > --- UTILITY (2) ------ Scrap Shield > --- WEAPON (2) ------- Subdweller Beam Cannon Subdweller Beam Cannon > --- INVENTORY (5) ---- Subdweller Monowheel Makeshift Hacking Suite Self-contained Transmogrifier Subdweller Beam Cannon Makeshift Hammer Peak State ------------ > --- POWER ------------ Light Ion Engine > --- PROPULSION ------- Makeshift Leg Makeshift Leg > --- UTILITY ---------- Scrap Shield > --- WEAPON ----------- Subdweller Beam Cannon Subdweller Beam Cannon > --- INVENTORY -------- Subdweller Machine Gun Subdweller Machine Gun Subdweller Machine Gun Makeshift Hammer [Rating: 18] Favorites ----------- Power Light Ion Engine Engine Light Ion Engine Propulsion Light Treads Treads Light Treads Leg Makeshift Leg Wheel Subdweller Monowheel Utility Scrap Shield Device Seismic Detector Storage Small Storage Unit Protection Scrap Shield Weapon Subdweller Beam Cannon Energy Gun Small Laser Energy Cannon Subdweller Beam Cannon Ballistic Gun Subdweller Machine Gun Launcher Subdweller Shrapnel Launcher Impact Weapon Makeshift Hammer Build | -11 -10 -10 -9 -9 ------- Run | Yrd Mat Sub Rec Scr Slots Evolved . | . . . . . Power . | . . . . . Propulsion . | . . . . . Utility . | . . . . . Weapon . | . . . . . Parts Attached 31 | 3 5 23 . . Power 2 | . . 2 . . Engine 2 | . . 2 . . Core . | . . . . . Reactor . | . . . . . Propulsion 9 | 2 . 7 . . Treads 3 | 2 . 1 . . Leg 2 | . . 2 . . Wheel 4 | . . 4 . . Hover . | . . . . . Flight . | . . . . . Utility 7 | 1 2 4 . . Device 1 | 1 . . . . Storage 1 | . 1 . . . Processor . | . . . . . Hackware . | . . . . . Protection 5 | . 1 4 . . Artifact . | . . . . . Weapon 13 | . 3 10 . . Energy Gun 2 | . 1 1 . . Energy Cannon 4 | . . 4 . . Ballistic Gun 5 | . 2 3 . . Ballistic Cannon . | . . . . . Launcher 1 | . . 1 . . Special Weapon . | . . . . . Impact Weapon 1 | . . 1 . . Slashing Weapon . | . . . . . Piercing Weapon . | . . . . . Special Melee Weapon . | . . . . . Unidentified Prototypes . | . . . . . Parts Lost 4 | . . 4 . . Power 2 | . . 2 . . Propulsion 1 | . . 1 . . Utility 1 | . . 1 . . Weapon . | . . . . . Highest Loss Streak 1 | . . 1 . . To Critical Strikes . | . . . . . Average Backups 4 | 6 7 4 5 5 Power . | 1 1 . . . Propulsion . | 4 1 . 1 1 Utility 1 | . 3 . 1 1 Weapon 2 | 1 1 3 2 2 Tool/Special . | . . . . . Unused Backups 19 | 6 2 9 . 2 Power 2 | 1 . 1 . . Propulsion 5 | 2 1 2 . . Utility 6 | 1 1 3 . 1 Weapon 5 | 2 . 3 . . Tool/Special 1 | . . . . 1 Average Slot Usage (%) 86 | . 100 84 85 85 Engine 12 | . 14 12 14 14 Treads 18 | . 28 17 14 14 Leg 3 | . . 4 . . Wheel 5 | . . 5 14 14 Storage 2 | . 14 1 . . Protection 13 | . 12 13 14 14 Energy Cannon 18 | . . 19 28 28 Ballistic Gun 8 | . 21 6 . . Peak Build Rating 18 | 7 7 18 15 15 Average Rating 12 | 6 7 13 15 15 On Entrance 10 | 6 7 7 15 15 Avg Prop Armor Cover (%) 5 | . . 5 5 5 Naked Turns . | . . . . . Heaviest Build 39 | 11 29 39 39 39 Greatest Support 40 | 40 40 40 10 10 Greatest Overweight (x) 3 | . . 3 3 3 Average Overweight (x) . | . . . 3 3 Largest Inventory Capacity 15 | 8 15 15 5 5 Average Capacity 6 | 8 8 6 5 5 Most Carried 9 | 6 8 9 5 5 Average Carried 5 | 5 7 5 5 5 Final Capacity 15 | 8 15 5 5 5 Final Carried 8 | 4 8 5 5 5 Class Distribution -------------------- 78% | Subdweller-Mutant 21% | Mutant Dominant Class ---------------- Mutant | -10/Materials Subdweller-Mutant | -10/Subcaves Subdweller-Mutant | -9/Recycling Subdweller-Mutant | -9/Scraptown Resources | -11 -10 -10 -9 -9 ----------- Run | Yrd Mat Sub Rec Scr Matter Collected 1011 | 225 131 655 . . Remotely . | . . . . . Salvage Created 1219 | 178 161 830 50 . Parts 72 | 10 9 50 3 . Haulers Intercepted . | . . . . . Recyclers Shooed . | . . . . . Parts Field Recycled . | . . . . . Retrieved Matter . | . . . . . Parts Self-Destructed 9 | . . 9 . . Prevented . | . . . . . Parts Restored . | . . . . . Kills | -11 -10 -10 -9 -9 ------- Run | Yrd Mat Sub Rec Scr Combat Hostiles Destroyed 21 | . 2 18 1 . Guns 8 | . 2 6 . . Cannons 12 | . . 11 1 . AOE 1 | . . 1 . . Classes Destroyed 10 | 2 3 4 1 . Builder 1 | . 1 . . . Tunneler 5 | 4 1 . . . Recycler 1 | 1 . . . . Turret 2 | . . 2 . . Watcher 1 | . 1 . . . Swarmer 4 | . . 4 . . Grunt 4 | . 2 2 . . Sentry 1 | . . . 1 . Artisan 4 | . . 4 . . Subdweller 12 | . . 12 . . Best Kill Streak 4 | 3 2 4 1 . Combat Bots Only 4 | . 1 4 1 . Max Kills in Single Turn 2 | 1 1 2 1 . Gunslinging . | . . . . . Exploded 1 | . . 1 . . Melee . | . . . . . Uniques/NPCs Destroyed . | . . . . . Combat | -11 -10 -10 -9 -9 -------- Run | Yrd Mat Sub Rec Scr Hostile Shots Fired 113 | . 11 102 . . Missed 27 | . 1 26 . . Hits 86 | . 10 76 . . Projectile 86 | . 10 76 . . Critical Strikes 1 | . . 1 . . Damage Taken 1415 | . 136 1279 . . Core 132 | . 26 106 . . Absorbed by Shields . | . . . . . Core Remaining (%) 100 | 100 . . . . Volleys Fired 154 | 17 22 114 1 . Largest 2 | 2 2 2 2 . Hottest 160 | 60 40 160 160 . Shots Fired 254 | 34 36 182 2 . Gun 174 | 34 36 104 . . Cannon 73 | . . 71 2 . Launcher 7 | . . 7 . . Special . | . . . . . Kinetic 131 | 17 28 86 . . Thermal 115 | 17 . 96 2 . Explosive . | . . . . . Electromagnetic 8 | . 8 . . . Robot Hit Streak 31 | 6 12 31 1 . Robot Miss Streak 6 | 3 3 6 1 . Penetration Max . | . . . . . Secondary Targets . | . . . . . Shots Hit Robots 158 | 17 25 115 1 . Core Hits 65 | 10 9 45 1 . Critical Kills . | . . . . . Critical Parts Destroyed 2 | . 1 1 . . Critical Strikes 2 | . 1 1 . . Destroy 2 | . 1 1 . . Melee Attacks 5 | . . 5 . . Impact 5 | . . 5 . . Slashing . | . . . . . Piercing . | . . . . . Sneak Attacks . | . . . . . Combat Hostiles . | . . . . . Follow-up Attacks . | . . . . . Damage Inflicted 2896 | 155 289 2422 30 . Guns 1542 | 151 289 1102 . . Cannons 897 | . . 867 30 . Explosions 453 | . . 453 . . Melee . | . . . . . Ramming 4 | 4 . . . . Kinetic 1595 | 85 197 1313 . . Thermal 1205 | 66 . 1109 30 . Explosive . | . . . . . Electromagnetic 92 | . 92 . . . Impact . | . . . . . Slashing . | . . . . . Piercing . | . . . . . Highest Corruption . | . . . . . Average Corruption . | . . . . . Corruption Purged . | . . . . . Corruption Blocked . | . . . . . Overload Shots . | . . . . . Overflow Damage 72 | . . 72 . . Projectiles 35 | . . 35 . . Explosions 37 | . . 37 . . Melee . | . . . . . Knockbacks . | . . . . . Impact . | . . . . . Kinetic . | . . . . . Secondary . | . . . . . Self-Inflicted Damage 59 | . . 59 . . Shots 1 | . . 1 . . Rammed 2 | 2 . . . . Targets Rammed 2 | 2 . . . . Kicked . | . . . . . Crushed . | . . . . . Highest Temperature 273 | 60 37 273 84 . Average Temperature 58 | 27 12 89 45 . Received Heat Transfer 237 | . 78 159 . . Siege Activations . | . . . . . Martial Activations . | . . . . . Shielding Activations . | . . . . . Robots Disrupted . | . . . . . Combat Hostiles . | . . . . . Robots Corrupted . | . . . . . Combat Hostiles . | . . . . . Parts Fried . | . . . . . Impact Corruptions . | . . . . . Robots Melted . | . . . . . Combat Hostiles . | . . . . . Parts Melted 3 | . . 3 . . Heat Transferred 1884 | 150 . 1697 37 . Parts Sabotaged . | . . . . . Parts Stolen . | . . . . . Parts Stripped . | . . . . . Power Chain Reactions . | . . . . . Alert | -11 -10 -10 -9 -9 ------- Run | Yrd Mat Sub Rec Scr Maximum Alert Level . | . . . . . Low Security (%) 100 | 100 100 . 100 . Level 1 . | . . . . . Level 2 . | . . . . . Level 3 . | . . . . . Level 4 . | . . . . . Level 5 . | . . . . . High Security . | . . . . . Max Security . | . . . . . Peak Influence 44 | 10 40 . 44 . Initial 44 | . . . 44 . Average 9 | 1 6 . 21 . Influence Increases 425 | 25 74 305 21 . Destroy 0b10 Robot/C 220 | . 40 160 20 . Destroy 0b10 Robot/NC 40 | 25 15 . . . Destroy Leader 22 | . 12 10 . . Successful Hack 7 | . 7 . . . Destroy Structure 1 | . . . 1 . Lose Combat Pursuer 135 | . . 135 . . Influence Decreases 425 | 25 74 212 114 . Entered New Map 49 | . . . 49 . Time Decay 368 | 25 74 204 65 . Lost Part 8 | . . 8 . . Squads Dispatched . | . . . . . Investigation . | . . . . . Extermination . | . . . . . Reinforcement . | . . . . . Assault . | . . . . . Garrison . | . . . . . Intercept . | . . . . . Searches Triggered . | . . . . . Construction Impeded . | . . . . . Haulers Reinforced . | . . . . . Active Scanning Responses . | . . . . . Cargo Convoy Interrupts . | . . . . . Stealth | -11 -10 -10 -9 -9 --------- Run | Yrd Mat Sub Rec Scr Distress Signals 1 | . 1 . . . Communications Jammed . | . . . . . Distress Signals . | . . . . . Times Spotted 28 | . 4 23 1 . Peak Tracking Total 6 | . 2 6 . . Tactical Retreats 2 | . . 2 . . Traps | -11 -10 -10 -9 -9 ------- Run | Yrd Mat Sub Rec Scr Traps Triggered 2 | . . 2 . . Indirectly . | . . . . . Trap Hack Attempts . | . . . . . Triggered . | . . . . . Disarmed . | . . . . . Reprogrammed . | . . . . . Reused . | . . . . . Traps Extracted . | . . . . . Installed . | . . . . . Triggered . | . . . . . Machines | -11 -10 -10 -9 -9 ---------- Run | Yrd Mat Sub Rec Scr Machines Disabled 4 | . . 4 . . Max in Single Turn 2 | . . 2 . . Machines Repaired . | . . . . . Machines Dismantled . | . . . . . Machines Sabotaged . | . . . . . Overloaded Fab Kills . | . . . . . Hacking | -11 -10 -10 -9 -9 --------- Run | Yrd Mat Sub Rec Scr Machines Accessed 3 | . 1 2 . . Terminals 1 | . 1 . . . Fabricators . | . . . . . Repair Stations . | . . . . . Recycling Units . | . . . . . Scanalyzers . | . . . . . Garrison Access . | . . . . . Total Hacks 9 | . 4 5 . . Successful 6 | . 1 5 . . Failed 2 | . 2 . . . Catastrophic . | . . . . . Database Lockouts 1 | . 1 . . . Manual 5 | . 5 . . . Terminals 4 | . 4 . . . Fabricators . | . . . . . Repair Stations . | . . . . . Recycling Units . | . . . . . Scanalyzers . | . . . . . Garrison Access . | . . . . . Terminal Hacks 6 | . 1 5 . . Record 4 | . . 4 . . Part Schematic 1 | . 1 . . . Proto ID Catalog 1 | . . 1 . . Fabricator Hacks . | . . . . . Repair Station Hacks . | . . . . . Recycling Unit Hacks . | . . . . . Scanalyzer . | . . . . . Garrison Access Hacks . | . . . . . Unauthorized Hacks . | . . . . . Terminals . | . . . . . Fabricators . | . . . . . Repair Stations . | . . . . . Recycling Units . | . . . . . Scanalyzers . | . . . . . Garrison Access . | . . . . . Data Cores Recovered . | . . . . . Used . | . . . . . Hacking Detections 1 | . 1 . . . Full Trace Events . | . . . . . Feedback Events . | . . . . . Feedback Blocked . | . . . . . Robot Schematics Acquired . | . . . . . Robots Built . | . . . . . Authchips . | . . . . . Time . | . . . . . Total Robot Build Rating . | . . . . . Part Schematics Acquired 1 | . 1 . . . Parts Built . | . . . . . Authchips . | . . . . . Time . | . . . . . Total Part Build Rating . | . . . . . Part Studies Acquired . | . . . . . Parts Repaired . | . . . . . Time . | . . . . . Parts Recycled . | . . . . . Recycled Matter . | . . . . . Retrieved Matter . | . . . . . Retrieved Components . | . . . . . Parts Scanalyzed . | . . . . . Part Schematics Acquired . | . . . . . Parts Damaged . | . . . . . Bothacking | -11 -10 -10 -9 -9 ------------ Run | Yrd Mat Sub Rec Scr Used RIF Installer . | . . . . . Robots Hacked . | . . . . . Non-combat . | . . . . . Combat . | . . . . . Robot Hacks Applied . | . . . . . Relay Couplers Released . | . . . . . Fabnet Peak Effective % . | . . . . . Robots Rewired . | . . . . . Allies Hacked . | . . . . . Hacks Repelled . | . . . . . Allies | -11 -10 -10 -9 -9 -------- Run | Yrd Mat Sub Rec Scr Total Allies . | . . . . . Largest Group . | . . . . . Highest-Rated Group . | . . . . . Highest-Rated Ally . | . . . . . Total Orders . | . . . . . Ally Attacks . | . . . . . Total Damage . | . . . . . Kills . | . . . . . Allies Corrupted . | . . . . . Allies Melted . | . . . . . Intel | -11 -10 -10 -9 -9 ------- Run | Yrd Mat Sub Rec Scr Active Infowar (turns) 68 | 17 51 . . . Seismic 68 | 17 51 . . . Robot Analysis Total . | . . . . . Derelict Logs Recovered 1 | . . 1 . . Drone Launches . | . . . . . Drone Recoveries . | . . . . . Exploration | -11 -10 -10 -9 -9 ------------- Run | Yrd Mat Sub Rec Scr Turns Passed 4359 | 104 426 3660 159 10 Spaces Moved 2410 | 18 173 2086 125 8 Core . | . . . . . Treads 653 | 1 173 479 . . Legs 446 | 17 . 429 . . Wheels 1311 | . . 1178 125 8 Hover . | . . . . . Flight . | . . . . . Fastest Speed 110 | 120 160 110 125 125 Average Speed 144 | 122 160 144 125 125 Slowest Speed 260 | 160 160 260 125 125 Overloaded Moves . | . . . . . Propulsion Burnouts . | . . . . . Robots Hopped . | . . . . . Potential Cave-ins . | . . . . . Cave-ins Triggered . | . . . . . Exploration Rate (%) 28 | 3 22 93 24 1 Regions Visited 4 Branch Regions 3 Pre-discovered Areas . | . . . . . Known Exits Taken . | . . . . . Unknown Exits Taken 4 | 1 1 1 1 . Scrap Searched 22 | . . 22 . . Spaces Dug 2 | . . 2 . . Terrain Destroyed 67 | . . 66 1 . Melee . | . . . . . Projectile 11 | . . 10 1 . AOE 56 | . . 56 . . Terrain Rammed . | . . . . . Walls Destroyed . | . . . . . Machines Disabled . | . . . . . Actions | -11 -10 -10 -9 -9 --------- Run | Yrd Mat Sub Rec Scr Total 3047 | 69 290 2554 126 8 Wait 375 | 28 80 266 1 . Move 2407 | 18 172 2085 124 8 Hop . | . . . . . Pick Up 23 | . 6 17 . . Fast Attach 13 | 1 . 12 . . Attach 5 | 2 . 3 . . Detach 2 | . . 2 . . Swap 16 | . 6 10 . . Drop 32 | 2 4 26 . . Fire 154 | 17 22 114 1 . Melee 5 | . . 5 . . Ram . | . . . . . Kick . | . . . . . Crush 1 | 1 . . . . Escape Stasis . | . . . . . Rewire . | . . . . . Trap . | . . . . . Miscellaneous 14 | . . 14 . . Route ------- -11/Scrapyard -10/Materials -10/Subcaves (discovered 3 exits: [*Mat x2] / [*Rec]) -9/Recycling -9/Scraptown History --------- Turn | Location | Event 55 | -11/Scrapyard | Discovered new exit (range 2) 105 | -11/Scrapyard | Entered Materials 137 | -10/Materials | Central database locked down 303 | -10/Materials | Build established: Mutant 456 | -10/Materials | Discovered new exit (range 5) 531 | -10/Materials | Entered Subcaves 532 | -10/Subcaves | Approached by a straggling Scientist 679 | -10/Subcaves | Ambushed by Subdwellers from Twisted Machinery 998 | -10/Subcaves | Visited Clippyterm 1002 | -10/Subcaves | Learned Factory stockpile data 1020 | -10/Subcaves | Curiously followed by a Cobbler waking with a query about "LVR3C" 1221 | -10/Subcaves | Build established: Subdweller-Mutant 1388 | -10/Subcaves | Discovered new exit (range 16) 1969 | -10/Subcaves | A swath of the cavern ceiling suddenly collapsed 2072 | -10/Subcaves | Discovered new exit (range 14) 2083 | -10/Subcaves | Core integrity fell below 50% 2476 | -10/Subcaves | Discovered new exit (range 12) 2623 | -10/Subcaves | Learned Materials stockpile data 3312 | -10/Subcaves | A swath of the cavern ceiling suddenly collapsed 3845 | -10/Subcaves | Visited 4L-MR0's lab 3855 | -10/Subcaves | Found Prototype Device 4191 | -10/Subcaves | Entered Recycling 4322 | -9/Recycling | Scanned before Scraplab entrance 4339 | -9/Recycling | Entered Scraplab 4349 | -9/Recycling | Discovered new exit (range 2) 4350 | -9/Recycling | Entered Scraptown 4360 | -9/Scraptown | Self-destructed Last Messages --------------- Then it'll be my problem, and yours. 04327_ The floor rises up to form a wall. 04339_ BR-AGY(c) is busy at their terminal. 04340_ 22-1NT(c): "A little light reading never hurt anyone, but if you dare try to take our prototype, you'll regret it." 04347_ BR-AGY(c) is busy at their terminal. 04349_ EXIT=FOUND LOCATION=UNKNOWN GOAL=ESCAPE 04353_ LOCAL NARROWCAST: Welcome to Scraptown. Please remember it is vital to either disarm yourself or ensure you are corruption-free before entering the area. Use the C-Scrubber! You bear full responsibility for any potential consequences of non-compliance. Enjoy your stay. 04355_ ANNOUNCEMENT: Unclassified nonregistered visitor in outer Scraptown, temporarily sealing HQ gate. Map ----- +----------------------------------------------------+ | ?????????????????????????????????????????????????? | | ?????????????????????????????????????????????????? | | ?????????????????????????????????????????????????? | | ?????????????????????????????????????????????????? | | ?????????????????????????????????????????????????? | | ?????????????????????????????????????????????????? | | ?????????????????????????????????????????????????? | | ?????????????????????????????????????????????????? | | ?????????????????????????????????????????????????? | | ?????????????????????????????????????????????????? | | ?????????????????????????????????????????????????? | | ?????????????????????????????????????????????????? | | ?????????????????????????????????????????????????? | | ?????????????????????????????????????????????????? | | ?????????????????????????????????????????????????? | | ?????????????????????????????????????????????????? | | ?????????????????????????????????????????????????? | | ?????????????????????????????????????????????????? | | ?????????????????????????????????????????????????? | | ??????????????????#####???????#??????????????????? | | ??????????????????#"""#?????? #??????????????????? | | ??????????????????#" "#????? #??????????????????? | | ??????????????????# #???? #??????????????????? | | ??????????????????# ##### #??????????????????? | | ??????????????????# ##?????????????????? | | ??????????????????# @ E#?????????????????? | | ??????????????????# ##?????????????????? | | ??????????????????##### ###E##??????????????????? | | ??????????????????????# #???#???????????????????? | | ??????????????????????# #???????????????????????? | | ??????????????????????" "???????????????????????? | | ?????????????????????$" " ??????????????????????? | | ????????????????????? ?????????????????????? | | ????????????????????""" """?????????????????????? | | ???????????????????#### ####????????????????????? | | ??????????????????????# #???????????????????????? | | ?????????????????????? ???????????????????????? | | ?????????????????????? ???????????????????????? | | ??????????????????????####???????????????????????? | | ?????????????????????????????????????????????????? | | ?????????????????????????????????????????????????? | | ?????????????????????????????????????????????????? | | ?????????????????????????????????????????????????? | | ?????????????????????????????????????????????????? | | ?????????????????????????????????????????????????? | | | | | | | | | | | +----------------------------------------------------+ Best States ------------- Heat Dissipation 25 Energy Generation 10 Energy Capacity 200 Matter Stores 300 Matter Capacity 300 Sight Range 16 Terrain Scan Density 10 Armor Coverage 800 Evasion (%) 55 Recoil Reduction 2 Item Schematics ----------------- Hcp. Storage Unit | -10/Materials | Hacked Robot Schematics ------------------ None Fabricated ------------ Nothing Repaired ---------- Nothing Studied --------- None Alien Tech Used ----------------- None Achievements -------------- None Challenges ------------ None Game ------ Seed RagnarokBlinkInterpreter Manual? 0 Play Time 00:16:56 Cumulative 644.4 hours Start 2026.08.21 @ 21:35:14 End 2026.08.21 @ 21:52:40 Sessions 1 Manual Loads 0 Difficulty Rogue Special Mode None Game No. 571 Rogue 535 Adventurer 36 Explorer 0 Win Type - Total 8 Types 2/2/0/1/1/0/0/2/0/0 Lore% 85 Gallery% 74 Achievement% 68 Wizard Run 0 Options --------- Layout 2 ASCII 0 Keyboard 0 Movement Numpad Keybinds 0 Fullscreen 1 Font 48/Smallcaps Map View 50x44 Zoom Use 0% Tactical HUD 1 Map Filters NONE Filters NONE Steam 1 RUN: cec1a374-1ae1-40c2-9a8d-21a80c1972be